[Event "Late-Titled-Tuesday-Blitz-January-16-2024"]
[Site "Chess.com"]
[Date "2024.01.16"]
[Round "5"]
[White "Chempiblinka"]
[Black "Rdeux42"]
[Result "1-0"]
[WhiteElo "2310"]
[BlackElo "2468"]
[TimeControl "180+1"]
[EndTime "14:53:48 PST"]
[Termination "Chempiblinka won on time"]

1. Nf3 {[%clk 0:03:00.9]} 1... Nf6 {[%clk 0:02:34.2]} 2. g3 {[%clk 0:03:00.1]}
2... g6 {[%clk 0:02:32.2]} 3. Bg2 {[%clk 0:02:58.8]} 3... Bg7 {[%clk 0:02:31.5]}
4. O-O {[%clk 0:02:58.9]} 4... d6 {[%clk 0:02:29.6]} 5. c4 {[%clk 0:02:59.1]}
5... O-O {[%clk 0:02:28.1]} 6. Nc3 {[%clk 0:02:58.7]} 6... Nc6 {[%clk
0:02:22.1]} 7. d4 {[%clk 0:02:58.3]} 7... Rb8 {[%clk 0:02:20.2]} 8. Bf4 {[%clk
0:02:44]} 8... a6 {[%clk 0:02:19.1]} 9. Rc1 {[%clk 0:02:44]} 9... Nh5 {[%clk
0:01:56.1]} 10. Bg5 {[%clk 0:02:41.1]} 10... h6 {[%clk 0:01:55.5]} 11. Be3
{[%clk 0:02:35.1]} 11... Nf6 {[%clk 0:01:55.5]} 12. d5 {[%clk 0:02:25]} 12...
Na5 {[%clk 0:01:53.4]} 13. b3 {[%clk 0:01:43.9]} 13... c5 {[%clk 0:00:28.2]} 14.
h3 {[%clk 0:01:43.8]} 14... b5 {[%clk 0:00:27.1]} 15. cxb5 {[%clk 0:01:37.2]}
15... axb5 {[%clk 0:00:28]} 16. Nd2 {[%clk 0:01:33.8]} 16... Ba6 {[%clk
0:00:22.4]} 17. Re1 {[%clk 0:01:28.6]} 17... Qd7 {[%clk 0:00:20.1]} 18. Nde4
{[%clk 0:01:23.6]} 18... Ra8 {[%clk 0:00:18.4]} 19. Nxf6+ {[%clk 0:01:21.8]}
19... Bxf6 {[%clk 0:00:19.1]} 20. Ne4 {[%clk 0:01:21.9]} 20... Bg7 {[%clk
0:00:18.5]} 21. Qd2 {[%clk 0:01:08.1]} 21... b4 {[%clk 0:00:17.9]} 22. Bxh6
{[%clk 0:01:06.5]} 22... Rfc8 {[%clk 0:00:17.3]} 23. Bxg7 {[%clk 0:01:06]} 23...
Kxg7 {[%clk 0:00:18.2]} 24. Qb2+ {[%clk 0:00:58.6]} 24... Kg8 {[%clk 0:00:17.5]}
25. Ng5 {[%clk 0:00:57.9]} 25... Qf5 {[%clk 0:00:16.3]} 26. h4 {[%clk
0:00:53.6]} 26... Qf6 {[%clk 0:00:16.1]} 27. Qxf6 {[%clk 0:00:52.4]} 27... exf6
{[%clk 0:00:17]} 28. Ne4 {[%clk 0:00:53]} 28... Rd8 {[%clk 0:00:16.7]} 29. Nxf6+
{[%clk 0:00:52.2]} 29... Kg7 {[%clk 0:00:17.3]} 30. Ne4 {[%clk 0:00:48.8]} 30...
c4 {[%clk 0:00:17.4]} 31. bxc4 {[%clk 0:00:44.3]} 31... Bxc4 {[%clk 0:00:18.3]}
32. Rb1 {[%clk 0:00:38]} 32... Rab8 {[%clk 0:00:17.2]} 33. Rb2 {[%clk 0:00:37]}
33... Bxd5 {[%clk 0:00:17]} 34. Reb1 {[%clk 0:00:36.2]} 34... Nc4 {[%clk
0:00:15.3]} 35. Rxb4 {[%clk 0:00:35]} 35... Bxe4 {[%clk 0:00:16.2]} 36. Rxb8
{[%clk 0:00:33.5]} 36... Rd7 {[%clk 0:00:09.2]} 37. R1b4 {[%clk 0:00:30.4]}
37... Bxg2 {[%clk 0:00:08.2]} 38. Kxg2 {[%clk 0:00:29.9]} 38... d5 {[%clk
0:00:08.6]} 39. a4 {[%clk 0:00:28.9]} 39... Ra7 {[%clk 0:00:08.3]} 40. R8b7
{[%clk 0:00:26.9]} 40... Ra6 {[%clk 0:00:08.1]} 41. e3 {[%clk 0:00:22.6]} 41...
Kf6 {[%clk 0:00:08.2]} 42. e4 {[%clk 0:00:21.1]} 42... Ke5 {[%clk 0:00:07.8]}
43. exd5 {[%clk 0:00:20.4]} 43... Kxd5 {[%clk 0:00:08.7]} 44. R7b5+ {[%clk
0:00:20.3]} 44... Kd4 {[%clk 0:00:07.9]} 45. Rb8 {[%clk 0:00:17.4]} 45... Kc3
{[%clk 0:00:06.3]} 46. R4b5 {[%clk 0:00:15.4]} 46... Rxa4 {[%clk 0:00:05.8]} 47.
Rf8 {[%clk 0:00:15.6]} 47... Nd6 {[%clk 0:00:04.4]} 48. Rc5+ {[%clk 0:00:14.6]}
48... Kd4 {[%clk 0:00:04.4]} 49. Rc7 {[%clk 0:00:14.3]} 49... Ra6 {[%clk
0:00:04]} 50. Rd7 {[%clk 0:00:14.3]} 50... Ke5 {[%clk 0:00:03.5]} 51. Rfd8
{[%clk 0:00:13.7]} 1-0

[Event "Late-Titled-Tuesday-Blitz-January-16-2024"]
[Site "Chess.com"]
[Date "2024.01.16"]
[Round "5"]
[White "yaguigor"]
[Black "Road2GM3000"]
[Result "1-0"]
[WhiteElo "2630"]
[BlackElo "2482"]
[TimeControl "180+1"]
[EndTime "14:53:49 PST"]
[Termination "yaguigor won on time"]

1. Nf3 {[%clk 0:03:00.9]} 1... d5 {[%clk 0:03:00]} 2. d4 {[%clk 0:02:57.4]} 2...
Nf6 {[%clk 0:03:00.3]} 3. c4 {[%clk 0:02:57.4]} 3... c6 {[%clk 0:03:01]} 4. Nc3
{[%clk 0:02:56.4]} 4... a6 {[%clk 0:03:01.4]} 5. c5 {[%clk 0:02:54.7]} 5... Nbd7
{[%clk 0:03:00.9]} 6. Bf4 {[%clk 0:02:54]} 6... Nh5 {[%clk 0:03:01.6]} 7. e3
{[%clk 0:02:53.3]} 7... Nxf4 {[%clk 0:03:00.5]} 8. exf4 {[%clk 0:02:53.4]} 8...
Nf6 {[%clk 0:02:53.3]} 9. Ne5 {[%clk 0:02:50.9]} 9... g6 {[%clk 0:02:42.8]} 10.
Bd3 {[%clk 0:02:42.8]} 10... Bg7 {[%clk 0:02:43.2]} 11. O-O {[%clk 0:02:42.1]}
11... O-O {[%clk 0:02:40.4]} 12. Re1 {[%clk 0:02:37.2]} 12... Kh8 {[%clk
0:02:34.8]} 13. b4 {[%clk 0:02:35.7]} 13... Bf5 {[%clk 0:02:34.6]} 14. f3 {[%clk
0:02:21.6]} 14... Bxd3 {[%clk 0:02:34]} 15. Qxd3 {[%clk 0:02:20.6]} 15... Ne8
{[%clk 0:02:29.2]} 16. a4 {[%clk 0:02:18.8]} 16... Nc7 {[%clk 0:02:29.6]} 17. f5
{[%clk 0:02:12.6]} 17... Qc8 {[%clk 0:02:26.3]} 18. fxg6 {[%clk 0:02:08.6]}
18... hxg6 {[%clk 0:02:23.6]} 19. b5 {[%clk 0:02:06.9]} 19... axb5 {[%clk
0:02:23.2]} 20. axb5 {[%clk 0:02:05.8]} 20... Rxa1 {[%clk 0:02:23.1]} 21. Rxa1
{[%clk 0:02:04.7]} 21... Bxe5 {[%clk 0:02:16.6]} 22. dxe5 {[%clk 0:02:03.9]}
22... Ne6 {[%clk 0:02:17.3]} 23. bxc6 {[%clk 0:02:01.1]} 23... bxc6 {[%clk
0:02:15.2]} 24. Qe3 {[%clk 0:01:58.1]} 24... Kg7 {[%clk 0:02:03.5]} 25. Ne2
{[%clk 0:01:55.9]} 25... Qb8 {[%clk 0:02:00.5]} 26. Nd4 {[%clk 0:01:53.9]} 26...
Nxd4 {[%clk 0:01:49.9]} 27. Qxd4 {[%clk 0:01:53]} 27... e6 {[%clk 0:01:48.7]}
28. Ra6 {[%clk 0:01:32.6]} 28... Qb1+ {[%clk 0:01:34.4]} 29. Kf2 {[%clk
0:01:31.5]} 29... Qc2+ {[%clk 0:01:33.5]} 30. Kg3 {[%clk 0:01:31.3]} 30... Rc8
{[%clk 0:01:25.4]} 31. Ra7 {[%clk 0:01:28.1]} 31... Qe2 {[%clk 0:01:17.7]} 32.
Qf4 {[%clk 0:01:02.7]} 32... Rf8 {[%clk 0:01:02.6]} 33. Qf6+ {[%clk 0:01:01.3]}
33... Kg8 {[%clk 0:01:02.6]} 34. Rc7 {[%clk 0:00:50.3]} 34... Qb5 {[%clk
0:01:01.7]} 35. Qe7 {[%clk 0:00:31.1]} 35... Qe2 {[%clk 0:00:50.4]} 36. Qg5
{[%clk 0:00:29.6]} 36... Qb5 {[%clk 0:00:40.4]} 37. h4 {[%clk 0:00:19.5]} 37...
Qxc5 {[%clk 0:00:25.5]} 38. h5 {[%clk 0:00:18.8]} 38... Qc2 {[%clk 0:00:25.6]}
39. h6 {[%clk 0:00:12.3]} 39... Qf5 {[%clk 0:00:25.9]} 40. Qxf5 {[%clk
0:00:11.3]} 40... gxf5 {[%clk 0:00:25]} 41. Kh4 {[%clk 0:00:06.3]} 41... Kh7
{[%clk 0:00:22.5]} 42. Kh5 {[%clk 0:00:06.5]} 42... Rg8 {[%clk 0:00:07.7]} 43.
g4 {[%clk 0:00:06.2]} 43... fxg4 {[%clk 0:00:06.6]} 44. fxg4 {[%clk 0:00:06.7]}
44... Rf8 {[%clk 0:00:06.4]} 45. g5 {[%clk 0:00:06.6]} 45... Kg8 {[%clk
0:00:05.7]} 46. Rxc6 {[%clk 0:00:05.3]} 46... Rb8 {[%clk 0:00:03.8]} 47. g6
{[%clk 0:00:02.6]} 47... fxg6+ {[%clk 0:00:02.2]} 48. Kxg6 {[%clk 0:00:03.5]}
48... Re8 {[%clk 0:00:01.9]} 49. Rd6 {[%clk 0:00:03.5]} 49... Kh8 {[%clk
0:00:02.1]} 50. Rd7 {[%clk 0:00:03.9]} 1-0

[Event "Late-Titled-Tuesday-Blitz-January-16-2024"]
[Site "Chess.com"]
[Date "2024.01.16"]
[Round "5"]
[White "jcibarra"]
[Black "MikaelyanArman"]
[Result "0-1"]
[WhiteElo "2881"]
[BlackElo "2864"]
[TimeControl "180+1"]
[EndTime "14:53:54 PST"]
[Termination "MikaelyanArman won by resignation"]

1. e4 {[%clk 0:03:00.9]} 1... c5 {[%clk 0:02:58.6]} 2. Nf3 {[%clk 0:03:00.4]}
2... Nc6 {[%clk 0:02:57.4]} 3. Nc3 {[%clk 0:02:59.8]} 3... e5 {[%clk 0:02:56.4]}
4. Bc4 {[%clk 0:02:59.1]} 4... d6 {[%clk 0:02:54.8]} 5. d3 {[%clk 0:02:59.3]}
5... Be7 {[%clk 0:02:55.3]} 6. O-O {[%clk 0:02:59]} 6... h6 {[%clk 0:02:50.5]}
7. Nd5 {[%clk 0:02:42.8]} 7... Nf6 {[%clk 0:02:50.2]} 8. c3 {[%clk 0:02:28.8]}
8... O-O {[%clk 0:02:45.9]} 9. Ne1 {[%clk 0:02:20.8]} 9... Be6 {[%clk
0:02:29.6]} 10. f4 {[%clk 0:02:11.6]} 10... exf4 {[%clk 0:02:21.4]} 11. Bxf4
{[%clk 0:02:10.3]} 11... Bxd5 {[%clk 0:02:19.5]} 12. Bxd5 {[%clk 0:02:06.6]}
12... Nxd5 {[%clk 0:02:18.7]} 13. exd5 {[%clk 0:02:06.7]} 13... Ne5 {[%clk
0:02:12.1]} 14. Nf3 {[%clk 0:01:50.4]} 14... Bf6 {[%clk 0:02:04.7]} 15. Bxe5
{[%clk 0:01:45.8]} 15... Bxe5 {[%clk 0:02:00.9]} 16. Nxe5 {[%clk 0:01:36]} 16...
dxe5 {[%clk 0:02:01.8]} 17. c4 {[%clk 0:01:36.2]} 17... f5 {[%clk 0:01:44.6]}
18. Qh5 {[%clk 0:01:35.5]} 18... Qf6 {[%clk 0:01:36.3]} 19. Rae1 {[%clk
0:01:31]} 19... Rae8 {[%clk 0:01:35.9]} 20. Rf2 {[%clk 0:01:22.3]} 20... e4
{[%clk 0:01:20.8]} 21. Rxe4 {[%clk 0:01:02.4]} 21... Rxe4 {[%clk 0:01:04.6]} 22.
dxe4 {[%clk 0:01:02.2]} 22... Qd4 {[%clk 0:01:05.2]} 23. exf5 {[%clk 0:00:48.4]}
23... Qxc4 {[%clk 0:01:05.4]} 24. Qd1 {[%clk 0:00:27.9]} 24... Rd8 {[%clk
0:00:55.8]} 25. d6 {[%clk 0:00:22.3]} 25... Qd4 {[%clk 0:00:54.4]} 26. Qb3+
{[%clk 0:00:17.5]} 26... c4 {[%clk 0:00:53]} 27. Qxb7 {[%clk 0:00:18]} 27...
Rxd6 {[%clk 0:00:50.4]} 28. h3 {[%clk 0:00:17.7]} 28... Kh7 {[%clk 0:00:46.3]}
29. Qf3 {[%clk 0:00:15.8]} 29... Qe5 {[%clk 0:00:37.8]} 30. g4 {[%clk
0:00:16.1]} 30... Rd3 {[%clk 0:00:35.5]} 31. Qf4 {[%clk 0:00:14.1]} 31... Qd5
{[%clk 0:00:18.9]} 32. Kh2 {[%clk 0:00:12.3]} 32... Rd4 {[%clk 0:00:16.7]} 33.
Qg3 {[%clk 0:00:12]} 33... Rd1 {[%clk 0:00:14.6]} 34. Rg2 {[%clk 0:00:11.2]}
34... Rd3 {[%clk 0:00:13.6]} 35. Qc7 {[%clk 0:00:11]} 35... Qf3 {[%clk
0:00:11.9]} 36. Qg3 {[%clk 0:00:08.4]} 36... Qf1 {[%clk 0:00:12.2]} 37. Qc7
{[%clk 0:00:05.2]} 37... Qf3 {[%clk 0:00:09.4]} 38. Qg3 {[%clk 0:00:04.4]} 38...
Qe4 {[%clk 0:00:08]} 39. g5 {[%clk 0:00:03.4]} 39... Rxg3 {[%clk 0:00:07.7]} 40.
g6+ {[%clk 0:00:04.2]} 40... Rxg6 {[%clk 0:00:06.6]} 41. fxg6+ {[%clk
0:00:03.8]} 41... Kg8 {[%clk 0:00:07]} 42. Kg1 {[%clk 0:00:03.1]} 42... Qe1+
{[%clk 0:00:06.7]} 43. Kh2 {[%clk 0:00:03.6]} 43... Qe5+ {[%clk 0:00:07.3]} 44.
Kg1 {[%clk 0:00:03.8]} 44... Qd4+ {[%clk 0:00:06.5]} 45. Kf1 {[%clk 0:00:03.6]}
45... h5 {[%clk 0:00:06.3]} 46. Rf2 {[%clk 0:00:02.7]} 46... Qd3+ {[%clk
0:00:06.2]} 47. Re2 {[%clk 0:00:01.8]} 47... Qb1+ {[%clk 0:00:06.4]} 48. Kf2
{[%clk 0:00:01.9]} 48... Qxg6 {[%clk 0:00:07.1]} 49. Re3 {[%clk 0:00:02.3]}
49... Qf5+ {[%clk 0:00:07.2]} 50. Rf3 {[%clk 0:00:02.8]} 50... Qc2+ {[%clk
0:00:07.4]} 51. Kg3 {[%clk 0:00:03.3]} 51... Qxb2 {[%clk 0:00:07.7]} 52. Kh4
{[%clk 0:00:03.9]} 52... Qxa2 {[%clk 0:00:07.3]} 53. Kg5 {[%clk 0:00:04.5]}
53... Kh7 {[%clk 0:00:07.6]} 54. Kxh5 {[%clk 0:00:04.5]} 54... Qe2 {[%clk
0:00:07.5]} 55. Kg5 {[%clk 0:00:04.1]} 55... Qxf3 {[%clk 0:00:07.3]} 0-1

[Event "Late-Titled-Tuesday-Blitz-January-16-2024"]
[Site "Chess.com"]
[Date "2024.01.16"]
[Round "5"]
[White "ATM622"]
[Black "Hui_Li_Macau"]
[Result "1-0"]
[WhiteElo "2485"]
[BlackElo "2316"]
[TimeControl "180+1"]
[EndTime "14:53:54 PST"]
[Termination "ATM622 won on time"]

1. d4 {[%clk 0:03:00.9]} 1... d5 {[%clk 0:02:53.5]} 2. c4 {[%clk 0:02:59]} 2...
e6 {[%clk 0:02:41]} 3. Nf3 {[%clk 0:02:54.6]} 3... Nf6 {[%clk 0:02:40.9]} 4. g3
{[%clk 0:02:54.9]} 4... dxc4 {[%clk 0:02:39.8]} 5. Bg2 {[%clk 0:02:54.9]} 5...
Be7 {[%clk 0:02:40.1]} 6. O-O {[%clk 0:02:53.5]} 6... O-O {[%clk 0:02:40.4]} 7.
Ne5 {[%clk 0:02:52.9]} 7... Nc6 {[%clk 0:02:40.2]} 8. Bxc6 {[%clk 0:02:52.8]}
8... bxc6 {[%clk 0:02:41.1]} 9. Nxc6 {[%clk 0:02:53.3]} 9... Qe8 {[%clk
0:02:41.5]} 10. Nxe7+ {[%clk 0:02:53.5]} 10... Qxe7 {[%clk 0:02:42.4]} 11. Qc2
{[%clk 0:02:53.9]} 11... c5 {[%clk 0:02:41.3]} 12. b3 {[%clk 0:02:51.6]} 12...
Rd8 {[%clk 0:02:08.3]} 13. dxc5 {[%clk 0:02:48.7]} 13... Qxc5 {[%clk 0:02:03.5]}
14. Qxc4 {[%clk 0:02:42]} 14... Qxc4 {[%clk 0:01:59.5]} 15. bxc4 {[%clk
0:02:42]} 15... Ba6 {[%clk 0:01:59.2]} 16. Na3 {[%clk 0:02:36.7]} 16... Rac8
{[%clk 0:01:55.4]} 17. Bg5 {[%clk 0:02:23.9]} 17... Bxc4 {[%clk 0:01:53.9]} 18.
Rfe1 {[%clk 0:01:53.8]} 18... Ba6 {[%clk 0:01:50.6]} 19. Kf1 {[%clk 0:01:28.9]}
19... h6 {[%clk 0:01:42.3]} 20. Be3 {[%clk 0:01:22.7]} 20... Rd7 {[%clk
0:01:24.7]} 21. Rac1 {[%clk 0:01:18.6]} 21... Rdc7 {[%clk 0:01:15.1]} 22. Rxc7
{[%clk 0:01:14.9]} 22... Rxc7 {[%clk 0:01:16]} 23. Rc1 {[%clk 0:01:13.9]} 23...
Rxc1+ {[%clk 0:01:10.7]} 24. Bxc1 {[%clk 0:01:14.8]} 24... Nd5 {[%clk 0:01:06]}
25. Bd2 {[%clk 0:01:14.2]} 25... Kf8 {[%clk 0:00:55.9]} 26. Ke1 {[%clk
0:01:13.5]} 26... Ke8 {[%clk 0:00:55.9]} 27. e4 {[%clk 0:01:11.7]} 27... Nb6
{[%clk 0:00:54.9]} 28. Bc3 {[%clk 0:00:56.2]} 28... f6 {[%clk 0:00:49.1]} 29. e5
{[%clk 0:00:55.7]} 29... f5 {[%clk 0:00:47]} 30. Bd4 {[%clk 0:00:54.1]} 30...
Nc4 {[%clk 0:00:37.9]} 31. Nc2 {[%clk 0:00:50.4]} 31... Bb7 {[%clk 0:00:25.3]}
32. Bxa7 {[%clk 0:00:45.2]} 32... Nxe5 {[%clk 0:00:24.5]} 33. Nd4 {[%clk
0:00:38.7]} 33... Nf3+ {[%clk 0:00:15.1]} 34. Nxf3 {[%clk 0:00:38.5]} 34... Bxf3
{[%clk 0:00:16]} 35. Kd2 {[%clk 0:00:36.6]} 35... Kd7 {[%clk 0:00:15.6]} 36. Bd4
{[%clk 0:00:36.3]} 36... g6 {[%clk 0:00:13.6]} 37. Kc3 {[%clk 0:00:35]} 37...
Kc6 {[%clk 0:00:12.2]} 38. Bg7 {[%clk 0:00:33.8]} 38... h5 {[%clk 0:00:09.1]}
39. Kd4 {[%clk 0:00:34.1]} 39... Bd5 {[%clk 0:00:04.2]} 40. a3 {[%clk
0:00:32.8]} 40... Bb3 {[%clk 0:00:03.8]} 41. Ke5 {[%clk 0:00:31.6]} 41... Kd7
{[%clk 0:00:02.7]} 42. Kf6 {[%clk 0:00:30.2]} 42... e5 {[%clk 0:00:01.8]} 43.
Kxg6 {[%clk 0:00:28]} 43... f4 {[%clk 0:00:01.5]} 44. Bxe5 {[%clk 0:00:25.4]}
44... fxg3 {[%clk 0:00:01.4]} 45. hxg3 {[%clk 0:00:22.2]} 45... Bd1 {[%clk
0:00:02.3]} 46. f4 {[%clk 0:00:21.5]} 46... Ke6 {[%clk 0:00:02.5]} 47. Bc3
{[%clk 0:00:19.3]} 47... Bg4 {[%clk 0:00:02.3]} 48. Kg5 {[%clk 0:00:18.2]} 48...
Bf3 {[%clk 0:00:01.7]} 49. f5+ {[%clk 0:00:18]} 49... Kf7 {[%clk 0:00:01.7]} 50.
a4 {[%clk 0:00:18.1]} 50... Bb7 {[%clk 0:00:01.7]} 51. Kxh5 {[%clk 0:00:17.8]}
1-0

[Event "Late-Titled-Tuesday-Blitz-January-16-2024"]
[Site "Chess.com"]
[Date "2024.01.16"]
[Round "5"]
[White "ZuraTqebuchava"]
[Black "MathiasWomacka"]
[Result "1/2-1/2"]
[WhiteElo "2139"]
[BlackElo "2545"]
[TimeControl "180+1"]
[EndTime "14:53:54 PST"]
[Termination "Game drawn by repetition"]

1. e4 {[%clk 0:03:00.9]} 1... c5 {[%clk 0:02:59.7]} 2. Nf3 {[%clk 0:02:58.9]}
2... d6 {[%clk 0:03:00]} 3. Bb5+ {[%clk 0:02:59.1]} 3... Nd7 {[%clk 0:02:58.8]}
4. O-O {[%clk 0:02:58.3]} 4... a6 {[%clk 0:02:58.8]} 5. Bxd7+ {[%clk 0:02:57.2]}
5... Bxd7 {[%clk 0:02:59.7]} 6. h3 {[%clk 0:02:57.4]} 6... Nf6 {[%clk
0:02:57.6]} 7. e5 {[%clk 0:02:54.2]} 7... dxe5 {[%clk 0:02:55.7]} 8. Nxe5 {[%clk
0:02:54.7]} 8... g6 {[%clk 0:02:51.1]} 9. b3 {[%clk 0:02:49.4]} 9... Bg7 {[%clk
0:02:50]} 10. Bb2 {[%clk 0:02:49.2]} 10... O-O {[%clk 0:02:49.4]} 11. Nxd7
{[%clk 0:02:43.1]} 11... Qxd7 {[%clk 0:02:47.6]} 12. d3 {[%clk 0:02:42]} 12...
b5 {[%clk 0:02:33.5]} 13. Nd2 {[%clk 0:02:39.8]} 13... Qc6 {[%clk 0:02:25.2]}
14. Re1 {[%clk 0:02:33.7]} 14... e6 {[%clk 0:02:22.9]} 15. Nf3 {[%clk
0:02:27.2]} 15... Rfd8 {[%clk 0:02:14.2]} 16. Ne5 {[%clk 0:02:25.8]} 16... Qb7
{[%clk 0:02:11.7]} 17. Qe2 {[%clk 0:02:10.8]} 17... Rab8 {[%clk 0:01:52.7]} 18.
a4 {[%clk 0:02:02.7]} 18... Nd5 {[%clk 0:01:48.7]} 19. axb5 {[%clk 0:01:49.7]}
19... axb5 {[%clk 0:01:49.6]} 20. Qf3 {[%clk 0:01:39]} 20... Nb4 {[%clk
0:01:47.4]} 21. Qxb7 {[%clk 0:01:12.3]} 21... Rxb7 {[%clk 0:01:48.3]} 22. Re2
{[%clk 0:01:09.9]} 22... f6 {[%clk 0:01:26]} 23. Ng4 {[%clk 0:01:01.9]} 23... e5
{[%clk 0:01:25.6]} 24. Ne3 {[%clk 0:01:00.2]} 24... Kf7 {[%clk 0:01:16]} 25. Bc3
{[%clk 0:00:56.4]} 25... Nc6 {[%clk 0:01:13.1]} 26. Ra6 {[%clk 0:00:51.2]} 26...
Nd4 {[%clk 0:01:12.5]} 27. Bxd4 {[%clk 0:00:47.4]} 27... cxd4 {[%clk 0:01:13.4]}
28. Nf1 {[%clk 0:00:39.9]} 28... Rc8 {[%clk 0:01:11.6]} 29. Ng3 {[%clk
0:00:36.1]} 29... Rbc7 {[%clk 0:01:08]} 30. Ra2 {[%clk 0:00:31.7]} 30... Bf8
{[%clk 0:01:06.8]} 31. Ne4 {[%clk 0:00:30]} 31... h6 {[%clk 0:01:00.2]} 32. g4
{[%clk 0:00:29.6]} 32... Rc6 {[%clk 0:00:52.3]} 33. Kg2 {[%clk 0:00:28.3]} 33...
f5 {[%clk 0:00:48.6]} 34. gxf5 {[%clk 0:00:26.2]} 34... gxf5 {[%clk 0:00:49.5]}
35. Ng3 {[%clk 0:00:25.6]} 35... Ke6 {[%clk 0:00:49.5]} 36. Kf3 {[%clk
0:00:24.7]} 36... Kd6 {[%clk 0:00:49.5]} 37. Nxf5+ {[%clk 0:00:23.8]} 37... Kd5
{[%clk 0:00:49.4]} 38. Ng3 {[%clk 0:00:19.7]} 38... Bb4 {[%clk 0:00:45.8]} 39.
Ne4 {[%clk 0:00:18.2]} 39... Rg6 {[%clk 0:00:39.7]} 40. Ng3 {[%clk 0:00:15.9]}
40... h5 {[%clk 0:00:36.3]} 41. h4 {[%clk 0:00:11.3]} 41... Rf8+ {[%clk
0:00:34.1]} 42. Kg2 {[%clk 0:00:11.1]} 42... Rg4 {[%clk 0:00:34.7]} 43. Ra7
{[%clk 0:00:08.1]} 43... Rxh4 {[%clk 0:00:34.3]} 44. Rb7 {[%clk 0:00:07.4]}
44... Kc6 {[%clk 0:00:33.5]} 45. Rh7 {[%clk 0:00:06.6]} 45... Bd6 {[%clk
0:00:29.9]} 46. Rxh5 {[%clk 0:00:05.6]} 46... Rxh5 {[%clk 0:00:29.8]} 47. Nxh5
{[%clk 0:00:06.2]} 47... Kd5 {[%clk 0:00:29]} 48. Ng3 {[%clk 0:00:06.7]} 48...
Be7 {[%clk 0:00:26.7]} 49. Re4 {[%clk 0:00:07.3]} 49... Rc8 {[%clk 0:00:25.9]}
50. Re2 {[%clk 0:00:07.5]} 50... Ra8 {[%clk 0:00:25.8]} 51. Kf3 {[%clk 0:00:08]}
51... Ra1 {[%clk 0:00:25.5]} 52. Nf5 {[%clk 0:00:07.5]} 52... Bf6 {[%clk
0:00:24.6]} 53. Ng3 {[%clk 0:00:07.9]} 53... Rc1 {[%clk 0:00:23.6]} 54. Ne4
{[%clk 0:00:08.2]} 54... Be7 {[%clk 0:00:22.5]} 55. Ng3 {[%clk 0:00:08.4]} 55...
Bf6 {[%clk 0:00:21.8]} 56. Ne4 {[%clk 0:00:08.6]} 56... Be7 {[%clk 0:00:22.3]}
57. Ng3 {[%clk 0:00:08.7]} 57... Bf6 {[%clk 0:00:21.7]} 1/2-1/2